bitfinex-derivatives/quotes_BTCF0:USTF0_20251208
["timestamp","ask_amount","ask_price","bid_price","bid_amount"]
[1765219034305,0.05814,90359.0,90358.0,0.00716597]
[1765219035704,0.05814,90359.0,90358.0,0.00616597]
[1765219036006,0.05814,90359.0,90358.0,0.00016597]
[1765219036301,0.05814,90359.0,90358.0,0.00516597]
[1765219036703,0.05814,90359.0,90358.0,0.00416597]
[1765219038193,0.0699789,90345.0,90344.0,0.01099844]
[1765219038399,0.02963,90338.0,90337.0,0.02737]
[1765219038600,0.05891,90338.0,90337.0,0.05603]
[1765219039201,0.0699788,90346.0,90345.0,0.05603]
[1765219039408,0.0699788,90346.0,90345.0,0.0670989]
[1765219039608,0.05891,90345.0,90344.0,0.006]
[1765219040106,0.05891,90344.0,90343.0,0.011069]
[1765219040307,0.05891,90344.0,90343.0,0.039729]
[1765219040695,0.05891,90344.0,90343.0,0.067099]
[1765219042107,0.05891,90344.0,90343.0,0.069099]
[1765219042306,0.00016597,90347.0,90343.0,0.069099]
[1765219042511,0.00016597,90347.0,90346.0,0.0670987]
[1765219044714,0.00016597,90347.0,90346.0,0.0690987]
[1765219045318,0.00016597,90347.0,90346.0,0.0720987]
[1765219045701,0.00016597,90347.0,90346.0,0.0730987]
[1765219046610,0.0272758,90370.0,90364.0,0.0110665]
[1765219046799,0.02928,90365.0,90364.0,0.05603]
[1765219047004,0.05891,90365.0,90364.0,0.05603]
[1765219047413,0.05891,90365.0,90360.0,0.24633358]
[1765219047414,0.0699755,90373.0,90372.0,0.05603]
[1765219047609,0.09405575,90373.0,90372.0,0.05603]
[1765219047813,0.09405575,90373.0,90372.0,0.02866]
[1765219048005,0.05891,90365.0,90364.0,0.0110665]
[1765219048315,0.05891,90365.0,90364.0,0.0670965]
[1765219048814,0.05891,90364.0,90363.0,0.00016597]
[1765219049117,0.0699765,90364.0,90363.0,0.00016597]
[1765219050800,0.05891,90364.0,90347.0,0.05897116]
[1765219051001,0.05891,90341.0,90340.0,0.0110694]
[1765219051209,0.0110697,90338.0,90337.0,0.05897116]
[1765219051512,0.05891,90337.0,90336.0,0.02220616]
[1765219051706,0.05891,90337.0,90336.0,0.01113626]
[1765219051913,0.05891,90336.0,90335.0,0.01107]
[1765219052310,0.05891,90336.0,90335.0,0.02220404]
[1765219052716,0.05891,90336.0,90335.0,0.01113404]
[1765219052902,0.05891,90335.0,90334.0,0.0110701]
[1765219053604,0.0699801,90335.0,90334.0,0.01101861]
[1765219053912,0.0172,90342.0,90327.0,0.04045597]
[1765219053913,0.0699809,90328.0,90327.0,0.04045597]
[1765219054717,0.05891,90328.0,90327.0,0.04045597]
[1765219055016,0.0699809,90328.0,90327.0,0.04045597]
[1765219055514,0.05891,90328.0,90327.0,0.09748597]
[1765219056203,0.06998,90336.0,90335.0,0.02866]
[1765219056913,0.06998,90336.0,90335.0,0.05603]
[1765219057113,0.0110706,90332.0,90331.0,0.02866]
[1765219057306,0.0699808,90329.0,90328.0,0.0110709]
[1765219057510,0.05891,90329.0,90328.0,0.0110709]
[1765219057813,0.05891,90329.0,90328.0,0.0397309]
[1765219058002,0.05891,90329.0,90328.0,0.02866]
[1765219058207,0.0699809,90328.0,90327.0,0.04045597]
[1765219058717,0.05891,90328.0,90327.0,0.04045597]
[1765219060116,0.05891,90295.0,90294.0,0.0671051]
[1765219060304,0.0172,90333.0,90305.0,0.05603]
[1765219060503,0.0699825,90315.0,90314.0,0.05603]
[1765219060708,0.0699825,90315.0,90314.0,0.02866]
[1765219060912,0.069983,90311.0,90310.0,0.02866]
[1765219061307,0.05891,90306.0,90305.0,0.00016606]
[1765219062421,0.05891,90306.0,90305.0,0.02999606]
[1765219062622,0.05891,90306.0,90305.0,0.00216606]
[1765219063520,0.05891,90306.0,90305.0,0.00916606]
[1765219064006,0.05891,90306.0,90305.0,0.06558606]
[1765219064620,0.0699836,90306.0,90305.0,0.06558606]
[1765219065022,0.05891,90306.0,90305.0,0.07665986]
[1765219065515,0.05891,90306.0,90305.0,0.00916606]
[1765219065909,0.05891,90306.0,90305.0,0.06558606]
[1765219067124,0.05891,90306.0,90305.0,0.00916606]
[1765219069426,0.05789,90306.0,90305.0,0.07665986]
[1765219070221,0.05789,90306.0,90305.0,0.00916606]
[1765219073630,0.05789,90306.0,90305.0,0.06558606]
[1765219074229,0.05789,90306.0,90305.0,0.00916606]
[1765219075137,0.05789,90306.0,90305.0,0.06558606]
[1765219077130,0.02928,90306.0,90305.0,0.06558606]
[1765219077332,0.05789,90306.0,90305.0,0.06558606]
[1765219079724,0.0680628,90313.0,90312.0,0.05642]
[1765219080124,0.0680631,90310.0,90309.0,0.0110732]
[1765219080323,0.0680631,90310.0,90309.0,0.0674932]
[1765219080635,0.07343,90306.0,90305.0,0.00916606]
[1765219081021,0.07343,90306.0,90305.0,0.00216606]
[1765219081826,0.07343,90306.0,90305.0,0.00016606]
[1765219082230,0.0975033,90306.0,90305.0,0.00016606]
[1765219082740,0.0975033,90306.0,90305.0,0.00216606]
[1765219083037,0.0975033,90306.0,90305.0,0.00916606]
[1765219086534,0.05699,90289.0,90288.0,0.05642]
[1765219086741,0.05711178,90289.0,90288.0,0.0674958]
[1765219086931,0.05711178,90289.0,90288.0,0.07841033]
[1765219087633,0.05711178,90289.0,90288.0,0.01091453]
[1765219087841,0.05711178,90289.0,90283.0,0.0110764]
[1765219087842,0.05699,90284.0,90283.0,0.0389064]
[1765219088031,0.0680663,90284.0,90283.0,0.0674964]
[1765219088534,0.0680663,90284.0,90283.0,0.07873171]
[1765219088727,0.05699,90284.0,90283.0,0.05642]
[1765219089033,0.0680668,90280.0,90279.0,0.0003876]
[1765219089346,0.0680668,90280.0,90279.0,0.0282176]
[1765219089525,0.0680668,90280.0,90279.0,0.0568076]
[1765219089730,0.05699,90280.0,90279.0,0.0568076]
[1765219090348,0.02894,90287.0,90286.0,0.0681661]
[1765219090536,0.09113297,90287.0,90286.0,0.02899]
[1765219091543,0.05597,90280.0,90279.0,0.0003876]
[1765219091735,0.05597,90280.0,90279.0,0.0013876]
[1765219092242,0.05597,90280.0,90279.0,0.0584776]
[1765219092442,0.05597,90280.0,90279.0,0.0003876]
[1765219094038,0.05597,90280.0,90279.0,0.0013876]
[1765219095738,0.0660363,90285.0,90284.0,0.05433]
[1765219096040,0.09009977,90285.0,90284.0,0.05433]
[1765219096634,0.09009977,90285.0,90284.0,0.02718]
[1765219096834,0.09009977,90285.0,90284.0,0.0654063]
[1765219097045,0.05496,90285.0,90284.0,0.0654063]
[1765219097228,0.05508178,90289.0,90288.0,0.05433]
[1765219097433,0.0791409,90289.0,90288.0,0.05433]
[1765219097934,0.0241809,90289.0,90288.0,0.0712]
[1765219098134,0.00012178,90289.0,90288.0,0.0712]
[1765219098537,0.00212178,90289.0,90288.0,0.0712]
[1765219099139,0.05708178,90289.0,90288.0,0.0712]
[1765219100045,0.05708178,90289.0,90288.0,0.0722]
[1765219100647,0.05708178,90289.0,90288.0,0.0712]
[1765219100845,0.05708178,90289.0,90288.0,0.0722]
[1765219101145,0.05508178,90289.0,90288.0,0.0722]
[1765219101530,0.05508178,90289.0,90288.0,0.0712]
[1765219101743,0.00012178,90289.0,90288.0,0.0712]
[1765219102346,0.0110735,90307.0,90297.0,0.0822747]
[1765219102942,0.01754724,90315.0,90297.0,0.0822747]
[1765219103154,0.05512606,90298.0,90297.0,0.02718]
[1765219103643,0.05512606,90298.0,90297.0,0.05433]
[1765219103838,0.05512606,90298.0,90297.0,0.05533]
[1765219104239,0.05512606,90298.0,90297.0,0.05633]
[1765219104439,0.05512606,90298.0,90297.0,0.05533]
[1765219105044,0.05612606,90298.0,90297.0,0.05433]
[1765219105843,0.00116606,90298.0,90297.0,0.0712]
[1765219106541,0.00110724,90315.0,90314.0,0.0654027]
[1765219106943,0.05606724,90315.0,90314.0,0.05433]
[1765219107346,0.06713974,90315.0,90314.0,0.05433]
[1765219107550,0.05606724,90315.0,90314.0,0.05433]
[1765219108045,0.02918724,90315.0,90314.0,0.05433]
[1765219108350,0.05606724,90315.0,90314.0,0.05433]
[1765219108556,0.05806724,90315.0,90314.0,0.05433]
[1765219108853,0.00310724,90315.0,90314.0,0.05433]
[1765219109345,0.05806724,90315.0,90314.0,0.05433]
[1765219110355,0.07244724,90315.0,90314.0,0.02718]
[1765219110650,0.05806724,90315.0,90314.0,0.05433]
[1765219110857,0.05806724,90315.0,90305.0,0.00016606]
[1765219110858,0.07158,90306.0,90305.0,0.00016606]
[1765219113246,0.07158,90306.0,90305.0,0.00116606]
[1765219113755,0.07158,90306.0,90305.0,0.00216606]
[1765219115553,0.07158,90306.0,90305.0,0.001]
[1765219115746,0.07158,90306.0,90285.0,0.05934546]
[1765219115747,0.01662,90288.0,90282.0,0.02718]
[1765219115946,0.05496,90283.0,90282.0,0.0654066]
[1765219116859,0.05496,90283.0,90282.0,0.0684066]
[1765219117157,0.05596,90283.0,90282.0,0.0684066]
[1765219118243,0.05596,90283.0,90282.0,0.0654066]
[1765219118448,0.0680365,90283.0,90282.0,0.0382566]
[1765219118650,0.0680365,90283.0,90282.0,0.02718]
[1765219118943,0.0680365,90283.0,90279.0,0.01129844]
[1765219118944,0.05496,90280.0,90279.0,0.00022154]
[1765219120154,0.05496,90280.0,90279.0,0.05455154]
[1765219120360,0.05696,90280.0,90279.0,0.05455154]
[1765219121155,0.002,90280.0,90279.0,0.07142154]
[1765219121362,0.05596,90283.0,90282.0,0.05433]
[1765219121760,0.05496,90283.0,90282.0,0.05433]
[1765219122861,0.05661606,90292.0,90291.0,0.05536]
[1765219123255,0.05661606,90292.0,90291.0,0.0664355]
[1765219124464,0.05761606,90292.0,90291.0,0.05536]
[1765219125662,0.00116606,90292.0,90291.0,0.05536]
[1765219126768,0.02835606,90292.0,90291.0,0.05536]
[1765219126958,0.02935606,90292.0,90291.0,0.05536]
[1765219127875,0.00116606,90292.0,90291.0,0.05536]
[1765219128262,0.05761606,90292.0,90291.0,0.05536]
[1765219130062,0.00116606,90292.0,90291.0,0.05536]
[1765219131659,0.00116606,90292.0,90291.0,0.05636]
[1765219133068,0.00016606,90292.0,90291.0,0.05836]
[1765219133270,0.0675229,90313.0,90312.0,0.05536]
[1765219134166,0.0675229,90313.0,90312.0,0.02786]
[1765219134868,0.0685229,90313.0,90312.0,0.02786]
[1765219135068,0.05745,90313.0,90312.0,0.05536]
[1765219135754,0.06045,90313.0,90312.0,0.05536]
[1765219135959,0.004,90313.0,90312.0,0.07241]
[1765219136759,0.001,90313.0,90312.0,0.07241]
[1765219136965,0.003,90313.0,90312.0,0.07241]
[1765219137255,0.0008339,90313.0,90312.0,0.07241]
[1765219137456,0.0018339,90313.0,90312.0,0.07241]
[1765219137966,0.0008339,90313.0,90312.0,0.07241]
[1765219139070,0.00110724,90315.0,90314.0,0.05536]
[1765219139268,0.00016606,90322.0,90321.0,0.0664318]
[1765219139873,0.02929694,90340.0,90339.0,0.0664296]
[1765219140260,0.00110694,90340.0,90339.0,0.0664296]
[1765219140467,0.05436,90360.0,90359.0,0.05603]
[1765219140665,0.04018574,90360.0,90344.0,0.07238]
[1765219140877,0.07061,90351.0,90350.0,0.05619606]
[1765219141072,0.05436,90351.0,90350.0,0.05619606]
[1765219141373,0.0816781,90351.0,90350.0,0.00016606]
[1765219142876,0.0846781,90351.0,90350.0,0.00016606]
[1765219143468,0.0856781,90351.0,90350.0,0.00016606]
[1765219144274,0.03103,90351.0,90350.0,0.05619606]
[1765219144670,0.05836,90351.0,90350.0,0.05619606]
[1765219145474,0.001,90351.0,90350.0,0.05619606]
[1765219145678,0.004,90351.0,90350.0,0.05619606]
[1765219146975,0.00110663,90365.0,90350.0,0.05619606]
[1765219146976,0.05436,90364.0,90363.0,0.0388265]
[1765219147278,0.05436,90364.0,90363.0,0.0670965]
[1765219147674,0.00110663,90365.0,90364.0,0.05603]
[1765219149173,0.01510663,90365.0,90364.0,0.05603]
[1765219149879,0.01610663,90365.0,90364.0,0.05603]
[1765219151785,0.04313663,90365.0,90364.0,0.05603]
[1765219151974,0.08153303,90365.0,90364.0,0.05603]
[1765219152285,0.07046663,90365.0,90364.0,0.05603]
[1765219153076,0.05722,90359.0,90358.0,0.02838]
[1765219153279,0.05722,90352.0,90351.0,0.05627]
[1765219154478,0.0845381,90351.0,90346.0,0.0110687]
[1765219154788,0.0845381,90351.0,90330.0,0.23009834]
[1765219154789,0.0845381,90351.0,90340.0,0.23009834]
[1765219155490,0.0845381,90351.0,90347.0,0.0110686]
[1765219155988,0.0855381,90351.0,90347.0,0.0110686]
[1765219156188,0.0865381,90351.0,90343.0,0.011069]
[1765219158091,0.0865381,90351.0,90340.0,0.24116784]
[1765219159087,0.07547,90351.0,90317.0,0.0591566]
[1765219159295,0.05722,90325.0,90324.0,0.0673414]
[1765219159590,0.06829,90336.0,90335.0,0.05627]
[1765219159773,0.0110709,90328.0,90327.0,0.05627]
[1765219159982,0.05722,90324.0,90323.0,0.02789]
[1765219160179,0.05722,90324.0,90323.0,0.05627]
[1765219160389,0.07175,90324.0,90323.0,0.03943295]
[1765219161091,0.07469,90324.0,90319.0,0.011072]
[1765219161292,0.0682925,90315.0,90314.0,0.02854606]
[1765219161592,0.0828225,90315.0,90314.0,0.00016606]
[1765219164180,0.0848225,90315.0,90314.0,0.00016606]
[1765219164382,0.0848225,90315.0,90314.0,0.05643606]
[1765219164383,0.0413025,90315.0,90314.0,0.05643606]
[1765219164586,0.0702925,90315.0,90314.0,0.05643606]
[1765219164878,0.0712925,90315.0,90314.0,0.05643606]
[1765219165195,0.004,90315.0,90314.0,0.05643606]
[1765219165400,0.002,90315.0,90314.0,0.05643606]
[1765219165692,0.001,90315.0,90314.0,0.05643606]
[1765219165891,0.0110718,90321.0,90320.0,0.07278]
[1765219166090,0.0393018,90321.0,90320.0,0.05627]
[1765219166292,0.05722,90321.0,90320.0,0.05627]
[1765219166888,0.05722,90315.0,90314.0,0.06850856]
[1765219167093,0.0682917,90322.0,90321.0,0.0673418]
[1765219167395,0.05722,90322.0,90321.0,0.05627]
[1765219168501,0.02823,90322.0,90321.0,0.05627]
[1765219168800,0.05922,90322.0,90321.0,0.05627]
[1765219169897,0.002,90322.0,90321.0,0.05627]
[1765219171097,0.001,90322.0,90321.0,0.05627]
[1765219171300,0.05738606,90333.0,90332.0,0.05627]
[1765219172196,0.00016606,90333.0,90332.0,0.05627]
[1765219173405,0.00116606,90333.0,90332.0,0.05627]
[1765219174098,0.0682881,90351.0,90350.0,0.05627]
[1765219175184,0.05722,90344.0,90343.0,0.0673391]
[1765219178799,0.05722,90344.0,90343.0,0.02838]
[1765219179100,0.06596,90342.0,90341.0,0.00016606]
[1765219180690,0.06596,90342.0,90341.0,0.00116606]
[1765219181088,0.06596,90342.0,90341.0,0.02954606]
[1765219181506,0.06596,90342.0,90341.0,0.00116606]
[1765219181694,0.05722,90342.0,90341.0,0.05743606]
[1765219183302,0.0695681,90351.0,90350.0,0.0563]
[1765219183502,0.09358235,90351.0,90350.0,0.0563]
[1765219184104,0.0695681,90351.0,90350.0,0.0563]
[1765219184301,0.09358426,90351.0,90350.0,0.0563]
[1765219184707,0.09458426,90351.0,90350.0,0.0563]
[1765219185406,0.0585,90343.0,90342.0,0.0673691]
[1765219185706,0.0695691,90343.0,90342.0,0.0673691]
[1765219186808,0.0695691,90343.0,90342.0,0.0683691]
[1765219187496,0.0695691,90343.0,90342.0,0.0573]
[1765219187699,0.0695691,90343.0,90342.0,0.001]
[1765219190607,0.0695691,90343.0,90341.0,0.00016606]
[1765219190806,0.0695706,90331.0,90330.0,0.0395306]
[1765219191204,0.0695706,90331.0,90330.0,0.0673706]
[1765219191803,0.0585,90322.0,90321.0,0.05646606]
[1765219192002,0.0585,90322.0,90321.0,0.06759195]
[1765219192405,0.0585,90322.0,90321.0,0.07866375]
[1765219193707,0.02869,90322.0,90321.0,0.08266375]
[1765219193905,0.02869,90322.0,90321.0,0.08466375]
[1765219195311,0.0585,90326.0,90325.0,0.0673713]
[1765219195516,0.02869,90326.0,90325.0,0.0673713]
[1765219196212,0.05866606,90340.0,90339.0,0.0673696]
[1765219196417,0.00016606,90340.0,90339.0,0.0673696]
[1765219197808,0.0397575,90356.0,90355.0,0.0563]
[1765219198007,0.09363683,90356.0,90355.0,0.0563]
[1765219199512,0.003,90356.0,90355.0,0.0563]
[1765219200513,0.00127269,90365.0,90364.0,0.0672765]
[1765219201215,0.0110646,90380.0,90379.0,0.05621]
[1765219201407,0.0687146,90380.0,90379.0,0.02754]
[1765219201603,0.05765,90371.0,90370.0,0.0672757]
[1765219202311,0.05765,90383.0,90382.0,0.05621]
[1765219202511,0.05765,90383.0,90382.0,0.06730124]
[1765219202713,0.05765,90383.0,90382.0,0.05621]
[1765219202927,0.0687153,90374.0,90373.0,0.06754687]
[1765219203121,0.0687153,90374.0,90373.0,0.05621]
[1765219203622,0.05765,90373.0,90372.0,0.03966088]
[1765219203819,0.05765,90373.0,90372.0,0.02867]
[1765219204207,0.0687165,90364.0,90363.0,0.05621]
[1765219205207,0.0687165,90364.0,90361.0,0.00016596]
[1765219205419,0.05765,90362.0,90361.0,0.00016596]
[1765219206316,0.05765,90362.0,90361.0,0.06744286]
[1765219206515,0.05765,90362.0,90361.0,0.05937596]
[1765219206917,0.0687162,90367.0,90366.0,0.05621]
[1765219207115,0.05765,90367.0,90366.0,0.05621]
[1765219207313,0.0397068,90362.0,90361.0,0.02983596]
[1765219207514,0.0687168,90362.0,90361.0,0.00116596]
[1765219207918,0.092738,90362.0,90361.0,0.00116596]
[1765219208518,0.092738,90362.0,90361.0,0.00216596]
[1765219209111,0.0687191,90344.0,90343.0,0.02867]
[1765219209912,0.0687191,90344.0,90343.0,0.03970991]
[1765219210432,0.0687191,90344.0,90343.0,0.04170991]
[1765219210724,0.0687191,90344.0,90343.0,0.03067]
[1765219211725,0.0687191,90344.0,90343.0,0.02867]
[1765219211927,0.0687191,90344.0,90343.0,0.02967]
[1765219212117,0.0687191,90344.0,90343.0,0.06840854]
[1765219212313,0.0687191,90344.0,90343.0,0.06740854]
[1765219213224,0.0687191,90344.0,90343.0,0.05621]
[1765219214112,0.0687191,90344.0,90343.0,0.06702694]
[1765219215020,0.0687191,90344.0,90343.0,0.05621]
[1765219215220,0.0687191,90344.0,90343.0,0.05721]
[1765219215616,0.0687191,90344.0,90343.0,0.05621]
[1765219215824,0.0687191,90344.0,90343.0,0.06824968]
[1765219216220,0.0687191,90344.0,90343.0,0.06724968]
[1765219216418,0.0687191,90344.0,90343.0,0.06824968]
[1765219216618,0.0833091,90344.0,90343.0,0.05721]
[1765219216823,0.0833091,90344.0,90343.0,0.001]
[1765219217120,0.0833091,90344.0,90343.0,0.05824]
[1765219217622,0.0687191,90344.0,90343.0,0.05824]
[1765219218329,0.0687191,90344.0,90343.0,0.05724]
[1765219218527,0.0687191,90344.0,90343.0,0.05824]
[1765219219428,0.0687191,90344.0,90343.0,0.05724]
[1765219219629,0.0687191,90344.0,90343.0,0.05824]
[1765219221026,0.0687191,90344.0,90343.0,0.02827]
[1765219221621,0.0687191,90344.0,90340.0,0.00110694]
[1765219221622,0.0694893,90341.0,90340.0,0.00110694]
[1765219222130,0.0872001,90335.0,90334.0,0.00016596]
[1765219222332,0.05842,90333.0,90332.0,0.00011597]
[1765219222631,0.0694923,90317.0,90316.0,0.06807456]
[1765219222829,0.0694923,90317.0,90316.0,0.05724]
[1765219223036,0.05842,90316.0,90315.0,0.01217974]
[1765219223231,0.05842,90316.0,90315.0,0.05834724]
[1765219223630,0.05852289,90316.0,90315.0,0.06941974]
[1765219223832,0.05852289,90316.0,90315.0,0.08051839]
[1765219224830,0.05852289,90316.0,90315.0,0.06944589]
[1765219225230,0.05852289,90316.0,90315.0,0.03037724]
[1765219225441,0.05852289,90316.0,90315.0,0.00310724]
[1765219227338,0.05952289,90316.0,90315.0,0.06941974]
[1765219227536,0.07059529,90316.0,90315.0,0.05834724]
[1765219227745,0.05952289,90316.0,90315.0,0.06941974]
[1765219228640,0.05952289,90316.0,90315.0,0.05834724]
[1765219228836,0.05852289,90316.0,90315.0,0.05834724]
[1765219229140,0.05852289,90316.0,90315.0,0.05934724]
[1765219229728,0.05852289,90316.0,90315.0,0.00210724]
[1765219230342,0.05852289,90316.0,90315.0,0.00110724]
[1765219230532,0.05852289,90316.0,90315.0,0.00210724]
[1765219230845,0.05852289,90316.0,90315.0,0.01317974]
[1765219231152,0.00110289,90316.0,90315.0,0.06941974]
[1765219231442,0.05952289,90316.0,90315.0,0.05834724]
[1765219232242,0.00110289,90316.0,90315.0,0.07497724]
[1765219232845,0.00016605,90325.0,90324.0,0.0840714]
[1765219233142,0.05858605,90325.0,90324.0,0.0840714]
[1765219233740,0.05862848,90325.0,90324.0,0.0840714]
[1765219234041,0.00020848,90325.0,90324.0,0.0840714]
[1765219236948,0.00020848,90325.0,90324.0,0.0890714]
[1765219237136,0.00020848,90325.0,90324.0,0.0910714]
[1765219237736,0.00020848,90325.0,90324.0,0.0890714]
[1765219237938,0.00020848,90325.0,90324.0,0.0900714]
[1765219238941,0.05842,90342.0,90341.0,0.05724]
[1765219240742,0.06965406,90351.0,90350.0,0.05724]
[1765219240946,0.00016596,90351.0,90350.0,0.05724]
[1765219241247,0.05858596,90351.0,90350.0,0.02727]
[1765219241633,0.05858596,90351.0,90350.0,0.06816565]
[1765219241833,0.00016596,90351.0,90350.0,0.06816565]
[1765219242233,0.0682167,90363.0,90362.0,0.05678]
[1765219242439,0.05715,90363.0,90362.0,0.0678468]
[1765219242641,0.0110644,90382.0,90365.0,0.0110664]
[1765219242947,0.05725,90366.0,90365.0,0.05801]
[1765219243845,0.02956,90371.0,90370.0,0.05801]
[1765219244242,0.05725,90371.0,90370.0,0.05801]
[1765219245351,0.06825,90371.0,90370.0,0.05801]
[1765219248740,0.06825,90371.0,90370.0,0.0285]
[1765219250646,0.07382,90368.0,90367.0,0.0110661]
[1765219250853,0.07382,90368.0,90367.0,0.0690761]
[1765219251844,0.08382,90368.0,90367.0,0.0690761]
[1765219253241,0.06725,90368.0,90367.0,0.0690761]
[1765219254150,0.06725,90368.0,90367.0,0.05801]
[1765219254646,0.08382,90368.0,90367.0,0.05801]
[1765219255653,0.05725,90365.0,90364.0,0.0690765]
[1765219255849,0.03956,90368.0,90367.0,0.0690762]
[1765219256054,0.06725,90368.0,90367.0,0.0690762]
[1765219257353,0.06725,90368.0,90367.0,0.05801]
[1765219257651,0.05725,90357.0,90356.0,0.06924355]
[1765219258348,0.05725,90357.0,90356.0,0.08630355]
[1765219259244,0.05725,90357.0,90356.0,0.07523605]
[1765219259446,0.05725,90357.0,90356.0,0.05817605]
[1765219259646,0.05725,90357.0,90356.0,0.00016605]
[1765219260354,0.05725,90357.0,90356.0,0.02866605]
[1765219260549,0.05725,90357.0,90356.0,0.05661605]
[1765219260947,0.02956,90357.0,90356.0,0.07371605]
[1765219261260,0.0689964,90365.0,90364.0,0.0674065]
[1765219261460,0.05793,90365.0,90364.0,0.0674065]
[1765219263149,0.05993,90365.0,90364.0,0.0674065]
[1765219263350,0.03069,90365.0,90364.0,0.0674065]
[1765219263552,0.002,90365.0,90364.0,0.0674065]
[1765219263955,0.05993,90365.0,90364.0,0.0674065]
[1765219264156,0.05993,90365.0,90364.0,0.05634]
[1765219266461,0.08398865,90365.0,90364.0,0.05634]
[1765219267165,0.05993,90365.0,90364.0,0.05634]
[1765219267561,0.0839983,90365.0,90364.0,0.05634]
[1765219268267,0.0689974,90357.0,90356.0,0.00016605]
[1765219269057,0.09307999,90357.0,90356.0,0.00016605]
[1765219270552,0.09307999,90357.0,90340.0,0.18375289]
[1765219270553,0.0689993,90341.0,90340.0,0.21214289]
[1765219270757,0.0689993,90341.0,90340.0,0.05634]
[1765219271467,0.0110698,90337.0,90336.0,0.05634]
[1765219271765,0.0689998,90337.0,90336.0,0.05634]
[1765219272361,0.05939,90332.0,90331.0,0.06977655]
[1765219272952,0.05939,90332.0,90331.0,0.00016605]
[1765219273568,0.0835857,90332.0,90331.0,0.06470605]
[1765219274264,0.05939,90332.0,90331.0,0.06470605]
[1765219274667,0.05939,90332.0,90331.0,0.06670605]
[1765219275057,0.019929,90344.0,90331.0,0.06670605]
[1765219275058,0.05939,90338.0,90337.0,0.05854]
[1765219275262,0.08357246,90338.0,90337.0,0.0696098]
[1765219275468,0.0110691,90344.0,90343.0,0.05854]
[1765219275663,0.0704595,90340.0,90339.0,0.0398596]
[1765219275874,0.08356179,90340.0,90339.0,0.0696096]
[1765219276467,0.08356179,90340.0,90337.0,0.001]
[1765219276468,0.070459,90345.0,90344.0,0.05854]
[1765219276669,0.05939,90345.0,90344.0,0.05854]
[1765219277765,0.05939,90345.0,90344.0,0.06154]
[1765219278976,0.05939,90345.0,90344.0,0.06254]
[1765219279460,0.00016605,90350.0,90349.0,0.0696084]
[1765219280771,0.00016605,90350.0,90349.0,0.0716084]
[1765219282779,0.05955605,90350.0,90349.0,0.0716084]
[1765219283464,0.00016605,90350.0,90349.0,0.0716084]
[1765219284872,0.07062425,90350.0,90349.0,0.002]
[1765219286366,0.09479805,90350.0,90349.0,0.002]
[1765219286875,0.09479805,90350.0,90333.0,0.02879]
[1765219286876,0.02744,90336.0,90333.0,0.02879]
[1765219287069,0.05939,90334.0,90333.0,0.02879]
[1765219287270,0.05939,90334.0,90333.0,0.05854]
[1765219288279,0.05939,90334.0,90333.0,0.06054]
[1765219288781,0.05939,90334.0,90333.0,0.007]
[1765219289566,0.08357058,90334.0,90333.0,0.007]
[1765219290378,0.0704624,90316.0,90314.0,0.0110725]
[1765219290577,0.0704624,90316.0,90315.0,0.05964724]
[1765219291568,0.0704624,90316.0,90315.0,0.07101337]
[1765219291981,0.0704624,90316.0,90315.0,0.05964724]
[1765219292378,0.0704624,90316.0,90315.0,0.06064724]
[1765219292779,0.0704624,90316.0,90315.0,0.05964724]
[1765219292988,0.0704624,90316.0,90315.0,0.06064724]
[1765219293175,0.011072,90320.0,90319.0,0.069612]
[1765219293382,0.0704617,90323.0,90322.0,0.0110716]
[1765219293681,0.0704617,90323.0,90322.0,0.05854]
[1765219294584,0.00016605,90325.0,90324.0,0.07518]
[1765219295285,0.03012605,90325.0,90324.0,0.07518]
[1765219296074,0.00016605,90325.0,90324.0,0.07518]
[1765219296370,0.00116605,90325.0,90324.0,0.07518]
[1765219296572,0.00026875,90325.0,90324.0,0.07518]
[1765219296771,0.39963747,90367.0,90342.0,0.07142]
[1765219296772,0.0410291,90343.0,90342.0,0.07142]
[1765219297375,0.0704591,90343.0,90342.0,0.07142]
[1765219298479,0.02996,90343.0,90342.0,0.07142]
[1765219298684,0.0410284,90349.0,90348.0,0.05854]
[1765219298880,0.0704584,90349.0,90348.0,0.05854]
[1765219300183,0.0734584,90349.0,90348.0,0.02879]
[1765219300378,0.0744584,90349.0,90348.0,0.02879]
[1765219300788,0.0744584,90349.0,90348.0,0.05854]
[1765219303676,0.0744584,90349.0,90348.0,0.02879]
[1765219303877,0.0693991,90343.0,90342.0,0.05617]
[1765219304081,0.0693991,90343.0,90342.0,0.0672392]
[1765219305487,0.0693991,90343.0,90342.0,0.05617]
[1765219305892,0.0713991,90343.0,90342.0,0.0672392]
[1765219306189,0.0713991,90343.0,90342.0,0.05617]
[1765219307595,0.0693995,90340.0,90339.0,0.0398495]
[1765219307890,0.0694002,90336.0,90335.0,0.05617]
[1765219309391,0.02979,90336.0,90335.0,0.05617]
[1765219309578,0.0110696,90339.0,90338.0,0.05617]
[1765219309579,0.02979,90339.0,90338.0,0.05617]
[1765219309777,0.04102405,90352.0,90351.0,0.05617]
[1765219309984,0.06956405,90352.0,90351.0,0.05617]
[1765219311182,0.09375606,90352.0,90351.0,0.05617]
[1765219311388,0.09375836,90352.0,90351.0,0.05617]
[1765219311579,0.06956405,90352.0,90351.0,0.05617]
[1765219311988,0.06956405,90352.0,90351.0,0.02878]
[1765219312188,0.09875853,90352.0,90351.0,0.02878]
[1765219312391,0.0693985,90348.0,90347.0,0.0672385]
[1765219312687,0.0693997,90338.0,90337.0,0.05617]
[1765219315290,0.05833,90338.0,90337.0,0.05617]
[1765219316085,0.01815605,90352.0,90345.0,0.0110688]
[1765219316281,0.01815605,90352.0,90351.0,0.05617]
[1765219316282,0.06956405,90352.0,90351.0,0.05617]
[1765219316488,0.09377564,90352.0,90351.0,0.05617]
[1765219318194,0.09477564,90352.0,90351.0,0.05617]
[1765219318385,0.09877564,90352.0,90351.0,0.05617]
[1765219319893,0.02937764,90352.0,90351.0,0.05617]
[1765219320287,0.00516605,90352.0,90351.0,0.05617]
[1765219320999,0.00416605,90352.0,90351.0,0.05617]
[1765219321193,0.00516605,90352.0,90351.0,0.05617]
[1765219321388,0.00116605,90352.0,90351.0,0.05617]
[1765219321598,0.00416605,90352.0,90351.0,0.05617]
[1765219325602,0.03228605,90352.0,90351.0,0.05617]
[1765219325799,0.05977605,90352.0,90351.0,0.05617]